bitfinex/quotes_ETHUSD_20260129
["timestamp","ask_amount","ask_price","bid_price","bid_amount"]
[1769715025828,7.55941147,2790.5,2788.7,0.89645953]
[1769715026037,7.55941147,2790.5,2788.5,0.89652063]
[1769715026239,7.45701147,2789.8,2786.9,0.56125969]
[1769715026459,9.20741115,2790.2,2787.4,7.20401317]
[1769715026756,0.1024,2790.0,2787.5,1.07916868]
[1769715027054,0.1024,2790.0,2787.5,8.28318185]
[1769715027259,0.1024,2790.0,2787.5,7.20401317]
[1769715027756,7.55941147,2790.0,2787.5,7.20401317]
[1769715028138,7.55941147,2790.0,2787.0,0.89702188]
[1769715028324,7.45701147,2789.8,2787.0,0.89702188]
[1769715028555,0.1024,2789.5,2787.0,0.89702188]
[1769715028756,7.45701147,2789.6,2787.0,0.89702188]
[1769715028757,0.89602523,2790.1,2787.3,7.20401317]
[1769715028934,0.1024,2790.1,2787.3,7.20401317]
[1769715029252,7.55941147,2790.1,2787.3,7.20401317]
[1769715029452,0.1024,2789.4,2787.0,0.89702188]
[1769715029652,7.45701147,2789.0,2787.0,0.89702188]
[1769715029993,0.752,2788.9,2787.0,0.89702188]
[1769715030466,0.89644291,2788.8,2786.8,3.58808754]
[1769715030673,8.35345438,2788.8,2786.8,3.58808754]
[1769715030874,7.45701147,2788.5,2786.8,3.58808754]
[1769715031060,0.89644291,2788.8,2786.7,0.89710825]
[1769715031061,0.1024,2788.2,2786.7,0.89710825]
[1769715031239,7.45701147,2788.3,2786.7,0.89710825]
[1769715031440,3.67816692,2790.2,2786.7,0.89710825]
[1769715031441,7.45701147,2789.9,2787.1,7.20401317]
[1769715031663,11.04141605,2789.9,2787.1,7.20401317]
[1769715031866,7.45701147,2789.6,2787.1,7.20401317]
[1769715032066,7.45701147,2789.6,2787.1,7.92441449]
[1769715032375,7.45701147,2789.6,2787.3,7.20401317]
[1769715032376,0.89621796,2789.5,2787.3,7.20401317]
[1769715032559,0.89621796,2789.5,2787.2,0.89695752]
[1769715032560,0.1024,2789.4,2787.2,0.89695752]
[1769715032761,7.55941147,2789.4,2787.2,0.89695752]
[1769715033062,7.45701147,2789.2,2787.2,0.89695752]
[1769715033369,0.1024,2789.4,2787.2,10.22418225]
[1769715033572,9.0127512,2789.4,2787.2,0.89695752]
[1769715033973,3.58461483,2789.8,2787.4,9.32722473]
[1769715034272,9.80642565,2790.0,2787.5,10.35330918]
[1769715034448,9.80642565,2790.0,2787.6,10.22405354]
[1769715035081,0.89607445,2790.0,2787.6,10.22405354]
[1769715035387,0.89588694,2790.6,2788.0,9.32722473]
[1769715035541,8.9103512,2791.2,2788.0,9.32722473]
[1769715035542,0.89685086,2790.7,2788.0,9.32722473]
[1769715035742,9.0127512,2790.6,2788.0,9.32722473]
[1769715036444,4.33398988,2791.0,2788.0,9.32722473]
[1769715036445,0.09418925,2791.7,2788.0,9.32722473]
[1769715036649,0.09418925,2798.1,2796.0,0.18669929]
[1769715036847,0.09418925,2798.1,2796.1,2.23302331]
[1769715036848,1.95785097,2798.1,2796.1,2.23302331]
[1769715037177,10.78404104,2798.1,2796.9,0.08937828]
[1769715037365,10.78404104,2798.1,2796.2,0.31749158]
[1769715037366,0.31666185,2798.1,2796.2,0.22330233]
[1769715037567,7.96689103,2799.4,2796.2,0.22330233]
[1769715037751,10.5982805,2799.3,2796.3,1.44936246]
[1769715038086,0.00205073,2799.5,2797.1,0.2335703]
[1769715038242,0.00205073,2799.5,2796.9,0.2335703]
[1769715038444,0.00205073,2799.5,2797.5,0.2335703]
[1769715038746,1.77426681,2802.6,2797.5,0.2335703]
[1769715038747,8.9103512,2800.9,2798.1,7.96689103]
[1769715038955,0.9116181,2802.0,2798.8,7.96689103]
[1769715038956,8.9103512,2801.9,2798.8,7.96689103]
[1769715039183,8.9103512,2801.9,2798.9,0.97510949]
[1769715039476,0.0193928,2802.0,2799.5,9.76436221]
[1769715039643,0.0193928,2802.0,2799.6,0.2335703]
[1769715039973,9.82196685,2802.0,2799.7,0.61555994]
[1769715040176,8.9103512,2801.7,2798.3,0.2335703]
[1769715040400,8.9103512,2800.5,2798.7,0.8606342]
[1769715040676,8.9103512,2800.3,2797.2,3.57474798]
[1769715040979,8.9103512,2799.7,2797.4,0.7149496]
[1769715041195,8.9103512,2799.7,2797.1,3.57474798]
[1769715041973,8.9103512,2799.5,2796.9,1.8498943]
[1769715042581,8.9103512,2799.1,2797.0,0.8938148]
[1769715042790,9.89069755,2799.0,2797.0,0.8938148]
[1769715042946,8.9103512,2799.0,2797.0,0.8938148]
[1769715044851,0.89320804,2798.9,2796.6,0.89394264]
[1769715045066,0.89320804,2798.9,2796.7,0.2335703]
[1769715045890,9.80355924,2798.9,2796.6,0.89394264]
[1769715046211,8.9103512,2798.3,2796.2,0.89406844]
[1769715046394,8.9103512,2798.3,2796.5,0.893969]
[1769715046755,8.89349628,2798.3,2796.5,0.893969]
[1769715046954,9.80378269,2798.2,2795.4,3.5772701]
[1769715047176,10.69313232,2798.2,2795.5,0.35772701]
[1769715048267,8.9103512,2797.8,2795.3,0.89435838]
[1769715049064,8.9103512,2797.6,2794.6,0.8945824]
[1769715049600,0.89359116,2797.7,2794.8,9.32722473]
[1769715049758,0.44679558,2797.6,2796.4,0.002]
[1769715049963,1.78278376,2798.2,2796.4,0.002]
[1769715050163,10.69313496,2798.2,2796.4,0.002]
[1769715050959,10.67795027,2798.2,2796.4,0.002]
[1769715052162,10.67795027,2798.2,2795.6,0.89426241]
[1769715052163,8.9103512,2797.8,2795.6,0.89426241]
[1769715052363,8.9103512,2797.6,2795.6,0.89426241]
[1769715052585,9.87628632,2797.5,2795.6,0.89426241]
[1769715052894,9.87628632,2797.5,2795.5,3.57704964]
[1769715052895,8.9103512,2797.5,2795.5,0.89427984]
[1769715053212,8.9103512,2797.3,2794.9,3.57786985]
[1769715053671,8.9103512,2797.3,2794.5,3.57838371]
[1769715053672,8.9103512,2796.4,2793.2,3.58000333]
[1769715053861,8.9103512,2796.2,2794.7,0.89454099]
[1769715054995,0.89410249,2796.1,2793.6,3.57954591]
[1769715055195,1.78513761,2796.1,2793.7,0.35795459]
[1769715056923,13.07448214,2796.0,2793.3,0.89499874]
[1769715057210,3.57640999,2796.4,2793.2,3.57999498]
[1769715057211,0.89391068,2796.7,2793.9,13.0189888]
[1769715057389,1.75440347,2796.6,2794.0,15.11757678]
[1769715057588,1.75440347,2796.6,2794.0,2.09858798]
[1769715057589,14.82888561,2796.6,2794.0,2.09858798]
[1769715057775,13.07448214,2796.4,2793.3,13.0189888]
[1769715058102,13.07448214,2796.2,2793.3,13.0189888]
[1769715058263,13.07448214,2796.2,2793.4,13.2525591]
[1769715058469,1.38234821,2796.1,2793.6,0.2335703]
[1769715058668,1.38234821,2796.1,2793.6,13.2525591]
[1769715058901,13.96839282,2796.7,2793.6,13.2525591]
[1769715059197,13.96839282,2796.7,2793.8,0.2335703]
[1769715059963,13.96839282,2796.7,2793.7,13.9138594]
[1769715059964,13.96839282,2796.7,2794.0,13.2525591]
[1769715060168,0.8938148,2797.0,2794.2,13.2525591]
[1769715060671,0.89348303,2798.1,2795.4,13.0189888]
[1769715060891,0.89348303,2798.1,2795.3,7.96689103]
[1769715060892,0.89348303,2798.1,2797.1,0.20497556]
[1769715061099,13.07448214,2798.5,2797.1,0.20497556]
[1769715061100,16.64833582,2798.3,2797.1,0.13558275]
[1769715061425,13.07448214,2798.3,2797.1,0.13558275]
[1769715061571,3.57447055,2798.7,2797.1,0.13558275]
[1769715061572,13.07448214,2801.8,2797.3,13.0189888]
[1769715061769,13.07448214,2801.8,2798.8,0.69230345]
[1769715061770,13.07448214,2801.6,2798.8,0.69230345]
[1769715061999,13.07448214,2801.6,2798.2,13.2525591]
[1769715062208,13.07448214,2801.6,2798.5,13.2525591]
[1769715062507,3.58852692,2802.0,2798.5,13.2525591]
[1769715062508,13.07448214,2803.7,2800.6,0.2335703]
[1769715062710,13.07448214,2803.7,2800.5,13.0189888]
[1769715062711,13.07448214,2803.5,2800.5,13.0189888]
[1769715062868,13.82348214,2803.4,2800.5,13.0189888]
[1769715063068,13.07448214,2803.0,2800.0,0.89285714]
[1769715063611,0.749,2802.9,2800.0,0.89285714]
[1769715063784,13.17688214,2802.8,2800.0,0.89285714]
[1769715063985,0.1024,2802.6,2800.0,0.89285714]
[1769715064186,13.07448214,2802.3,2800.0,0.89285714]
[1769715064389,13.07448214,2801.6,2799.5,0.89300584]
[1769715064625,13.07448214,2801.6,2799.4,0.89302338]
[1769715064777,13.17688214,2801.4,2798.3,16.59257154]
[1769715064979,13.07448214,2801.0,2798.4,3.57334326]
[1769715065282,13.17688214,2800.7,2797.7,3.57432377]
[1769715065485,0.89260211,2800.8,2797.7,3.57432377]
[1769715065486,13.07448214,2800.3,2797.7,3.57432377]
[1769715065686,0.748,2800.2,2797.7,3.57432377]
[1769715065895,0.748,2800.1,2797.7,3.57432377]
[1769715066069,0.748,2800.0,2797.8,0.44679149]
[1769715067282,0.89288903,2799.9,2797.9,0.89352728]
[1769715067914,0.89266585,2800.6,2797.9,0.89352728]
[1769715068118,1.64066585,2800.6,2798.0,0.49144279]
[1769715068295,0.1024,2800.5,2798.0,0.49144279]
[1769715068846,1.64066585,2800.6,2798.0,0.49144279]
[1769715069125,1.64066585,2800.6,2797.9,0.89352728]
[1769715069126,15.22010755,2800.5,2797.9,0.89352728]
[1769715069326,0.89272961,2800.4,2797.9,0.89352728]
[1769715069517,13.96721175,2800.4,2797.9,0.89352728]
[1769715069717,0.748,2800.3,2797.9,0.89352728]
[1769715069918,1.38234821,2800.2,2797.9,1.69770184]
[1769715071227,3.57142857,2800.1,2797.9,1.69770184]
[1769715071412,1.39762541,2800.5,2798.4,13.2525591]
[1769715071608,13.07448214,2801.8,2798.2,7.96689103]
[1769715071609,0.89231537,2801.7,2798.6,13.2525591]
[1769715071934,0.89209249,2802.4,2799.2,13.2525591]
[1769715072134,13.07448214,2802.5,2799.9,13.0189888]
[1769715072135,1.39665746,2802.3,2799.9,13.0189888]
[1769715072336,0.89207765,2802.5,2799.9,13.0189888]
[1769715072851,0.89207765,2802.5,2799.5,0.2335703]
[1769715073016,13.96655979,2802.5,2799.5,0.2335703]
[1769715073343,0.89207765,2802.5,2799.7,0.2335703]
[1769715073630,0.52083108,2802.4,2799.8,1.41455438]
[1769715074596,0.1024,2801.5,2798.7,3.57303653]
[1769715074796,13.07448214,2801.4,2798.2,13.0189888]
[1769715075044,0.08219423,2801.5,2798.2,16.59262871]
[1769715075045,13.17688214,2801.2,2798.2,16.59262871]
[1769715075259,0.1024,2801.0,2798.0,0.89349535]
[1769715075414,1.40693886,2800.9,2798.0,0.89349535]
[1769715075596,0.748,2800.8,2798.0,0.89349535]
[1769715075796,13.07448214,2800.5,2798.0,0.89349535]
[1769715076252,1.40693886,2800.9,2798.0,13.91248415]
[1769715076449,0.748,2800.5,2798.1,0.52716513]
[1769715076596,0.748,2800.5,2798.0,0.89349535]
[1769715076597,13.82248214,2800.5,2798.0,0.89349535]
[1769715077139,13.07448214,2800.5,2798.0,0.89349535]
[1769715077340,0.89276148,2800.3,2798.1,0.002]
[1769715078206,0.748,2800.2,2798.1,0.002]
[1769715078842,0.89276148,2800.3,2798.1,0.002]
[1769715079139,0.748,2800.1,2798.2,1.39144842]
[1769715079441,0.89285714,2800.0,2798.3,0.89339956]
[1769715079610,3.67242606,2801.3,2798.4,0.2335703]
[1769715079810,4.77444083,2801.2,2798.3,0.89339956]
[1769715080065,0.748,2801.1,2798.4,13.2525591]
[1769715080722,4.02644083,2801.2,2798.4,13.2525591]
[1769715080921,4.02644083,2801.2,2798.3,0.89339956]
[1769715080922,13.82248214,2801.1,2798.3,0.89339956]
[1769715081254,14.59236883,2801.1,2798.4,0.58584462]
[1769715081459,0.89253837,2801.0,2798.5,0.89333571]
[1769715081949,0.89253837,2801.0,2798.5,13.91232451]
[1769715082537,0.748,2800.9,2798.5,13.91232451]
[1769715082869,0.748,2800.9,2798.6,1.8071512]
[1769715083256,1.66239462,2801.1,2798.7,13.2525591]
[1769715083457,0.89212432,2802.3,2799.6,0.2335703]
[1769715083633,0.89212432,2802.3,2799.7,0.2335703]
[1769715083839,0.89212432,2802.3,2799.8,13.0189888]
[1769715084068,0.89212432,2802.3,2800.4,13.0189888]
[1769715084244,0.44606216,2802.2,2800.5,1.30189888]
[1769715084440,0.44606216,2802.2,2799.7,13.0189888]
[1769715085337,0.892188,2802.1,2799.8,0.89292092]
[1769715085770,0.44953899,2804.5,2800.0,13.28522019]
[1769715085944,3.56607945,2804.4,2801.1,13.28522019]
[1769715086145,3.56607945,2804.4,2801.3,0.2335703]
[1769715086146,16.76480073,2804.4,2801.3,0.2335703]
[1769715086464,13.19872128,2804.1,2800.7,13.51879049]
[1769715086688,13.19872128,2804.1,2800.9,13.28522019]
[1769715086849,2.5585796,2804.3,2800.9,27.78522019]
[1769715086850,13.19872128,2803.9,2800.9,27.78522019]
[1769715087031,13.19872128,2803.7,2800.8,1.35187905]
[1769715087231,13.19872128,2803.3,2800.2,13.28522019]
[1769715087437,13.19872128,2802.9,2800.2,0.89279337]
[1769715087671,0.89190153,2803.0,2800.2,1.75171597]
[1769715087672,13.19872128,2802.7,2800.2,1.75171597]
[1769715088244,0.748,2802.6,2800.2,1.75171597]
[1769715088443,13.94672128,2802.6,2800.2,1.75171597]
[1769715088644,13.94672128,2802.6,2800.2,0.89279337]
[1769715089047,0.89190153,2803.0,2800.2,14.17801356]
[1769715089450,16.76632741,2803.1,2800.2,14.17801356]
[1769715089651,13.19872128,2803.0,2800.2,14.17801356]
[1769715089870,1.67663274,2802.9,2800.3,1.7749187]
[1769715090459,1.67663274,2802.9,2800.4,7.91422272]
[1769715090654,3.56760613,2803.1,2800.3,15.06013889]
[1769715090856,13.94672128,2803.0,2800.3,15.06013889]
[1769715091582,0.89193335,2802.9,2800.4,0.89272961]
[1769715091786,13.19872128,2802.8,2800.4,0.89272961]
[1769715091949,13.19872128,2802.7,2800.3,0.89274035]
[1769715092291,13.19872128,2802.7,2800.1,0.89280617]
[1769715092292,13.19872128,2802.1,2800.1,0.89280617]
[1769715092584,0.747,2802.0,2800.2,0.89277439]
[1769715092784,1.50624759,2801.9,2800.3,0.89275606]
[1769715092956,0.11167546,2801.8,2800.1,3.57129933]
[1769715093280,0.85867546,2801.7,2799.5,1.32852202]
[1769715093468,0.11167546,2801.6,2799.6,5.03322628]
[1769715093645,0.89241093,2801.4,2799.2,0.89311231]
[1769715093848,0.11167546,2801.3,2799.2,0.89311231]
[1769715094049,0.11167546,2801.2,2799.2,0.89311231]
[1769715094250,0.11167546,2801.1,2799.3,0.52135616]
[1769715094550,0.11167546,2801.0,2799.3,0.52135616]
[1769715094774,0.11167546,2800.9,2799.3,0.52135616]
[1769715094970,0.11167546,2800.8,2799.3,0.52135616]
[1769715095173,0.11167546,2800.7,2799.3,0.52135616]
[1769715095377,0.11167546,2800.6,2799.2,0.89311231]
[1769715095580,0.11167546,2800.5,2799.1,0.89313999]
[1769715095885,0.11167546,2800.4,2798.9,3.57257689]
[1769715096089,0.11167546,2800.3,2799.0,0.44658168]
[1769715096252,0.747,2801.0,2799.0,0.44658168]
[1769715096253,0.11167546,2800.2,2799.0,0.44658168]
[1769715096582,0.11167546,2800.1,2799.0,0.44658168]
[1769715096781,0.11167546,2800.0,2799.1,0.40191586]
[1769715097001,0.10096821,2799.9,2798.9,3.57257689]
[1769715097200,0.89270081,2800.5,2798.9,3.57257689]
[1769715097504,0.881993,2800.5,2798.9,3.57257689]
[1769715097707,1.32726032,2800.5,2799.0,0.44658168]
[1769715097861,13.83601353,2801.8,2799.1,0.89314422]
[1769715098064,14.58301353,2801.7,2799.1,0.89314422]
[1769715098261,13.83601353,2801.7,2799.1,0.89314422]
[1769715098516,0.747,2801.6,2799.1,14.8212274]
[1769715098824,0.747,2801.5,2799.1,14.8212274]
[1769715098966,0.747,2801.6,2799.2,1.8840386]
[1769715099993,0.89237908,2801.5,2799.3,0.89308041]
[1769715100313,14.72839261,2801.5,2799.3,0.89308041]
[1769715100476,0.89237908,2801.5,2799.3,0.89308041]
[1769715100669,1.63937908,2801.5,2799.3,0.89308041]
[1769715100860,0.52088954,2801.4,2799.4,0.44654021]
[1769715102074,0.89244279,2801.3,2799.5,0.89301661]
[1769715102394,14.72845632,2801.3,2799.5,0.89301661]
[1769715103669,14.72845632,2801.3,2799.3,0.89307865]
[1769715103864,13.83601353,2801.1,2799.1,3.57257082]
[1769715104093,13.83601353,2801.1,2798.5,3.57331699]
[1769715104094,14.7285519,2801.0,2798.5,3.57331699]
[1769715104287,14.7285519,2801.0,2799.2,0.002]
[1769715104680,0.747,2800.9,2799.2,0.002]
[1769715105292,14.7285519,2801.0,2799.2,0.002]
[1769715105493,2.57787054,2800.9,2799.2,0.002]
[1769715106220,0.89260211,2800.8,2799.2,0.002]
[1769715106381,5.40027899,2800.9,2799.2,0.002]
[1769715106382,0.8925888,2800.9,2799.2,13.93008318]
[1769715106816,0.8925888,2800.9,2799.2,0.002]
[1769715107506,0.88188167,2800.9,2799.2,0.002]
[1769715107710,14.28122949,2800.8,2798.5,3.57331699]
[1769715108422,14.72864751,2800.7,2798.2,3.57334586]
[1769715108994,13.94774336,2800.6,2798.2,3.57334586]
[1769715109318,0.11172983,2800.5,2798.2,3.57334586]
[1769715109502,1.50650417,2800.4,2798.2,3.57334586]
[1769715109712,0.11172983,2800.3,2798.5,13.92808318]
[1769715109893,0.11172983,2800.2,2798.5,13.92808318]
[1769715110093,0.89263398,2800.7,2798.5,13.92808318]
[1769715110094,0.11172983,2800.1,2798.5,13.92808318]
[1769715110417,0.89288903,2799.9,2798.8,0.89323995]
[1769715110616,0.11172983,2799.8,2798.8,0.89323995]
[1769715110818,0.11172983,2799.7,2798.8,0.89323995]
[1769715110995,0.11172983,2799.6,2798.8,0.89323995]
[1769715111194,0.88216839,2800.0,2798.8,1.69735591]
[1769715111494,0.748,2800.5,2798.8,1.69735591]
[1769715111495,0.89269773,2800.5,2798.8,1.69735591]
[1769715111695,0.49542182,2800.4,2798.9,0.52723157]
[1769715112235,0.49542182,2800.4,2798.8,1.69735591]
[1769715112651,0.89276148,2800.3,2798.8,1.69735591]
[1769715112803,0.89276148,2800.3,2798.8,0.89323995]
[1769715114611,0.89276148,2800.3,2798.7,0.002]
[1769715115716,0.87463748,2800.3,2798.7,0.002]
[1769715117842,14.18016698,2800.3,2798.9,0.002]
[1769715118050,0.001,2800.1,2798.7,0.002]
[1769715119352,0.89382525,2800.1,2798.7,0.002]
[1769715120334,0.89382525,2800.1,2798.6,0.002]
[1769715121055,0.001,2800.1,2798.7,13.914117]
[1769715121364,0.001,2800.1,2798.9,0.89320804]
[1769715122056,3.56977117,2801.4,2799.0,13.36489154]
[1769715122231,0.89221984,2802.0,2799.4,13.36489154]
[1769715122424,0.89221984,2802.0,2800.0,13.36489154]
[1769715122624,1.33832976,2802.0,2800.0,13.36489154]
[1769715122933,0.89221984,2802.0,2800.0,13.36489154]
[1769715123132,14.19774934,2802.0,2799.5,13.36489154]
[1769715123348,14.19774934,2802.0,2799.7,14.25784435]
[1769715124327,14.19774934,2802.0,2799.7,0.89295281]
[1769715124528,14.94574934,2802.0,2799.7,0.89295281]
[1769715126124,0.748,2801.9,2799.8,13.36489154]
[1769715126859,14.0535295,2801.9,2799.8,13.36489154]
[1769715127068,1.49457493,2801.8,2799.9,1.42578444]
[1769715127365,0.89231537,2801.7,2800.0,0.89285714]
[1769715127576,14.19784487,2801.7,2800.0,0.89285714]
[1769715127869,14.19784487,2801.7,2799.8,0.89289987]
[1769715128039,14.19784487,2801.7,2799.9,0.8928887]
[1769715128244,1.92616813,2801.6,2799.9,0.8928887]
[1769715128441,0.748,2801.5,2799.9,0.8928887]
[1769715129568,0.89241093,2801.4,2799.8,3.57155612]
[1769715131435,0.89241093,2801.4,2799.6,3.57168369]
[1769715131832,0.89241093,2801.4,2799.6,16.93657523]
[1769715132037,0.82107205,2801.4,2799.7,2.05102589]
[1769715132272,0.82107205,2801.4,2799.7,15.41591743]
[1769715132679,0.82107205,2801.4,2799.7,2.05102589]
[1769715132970,0.82107205,2801.4,2799.6,3.57168369]
[1769715134240,0.82107205,2801.4,2799.5,3.57368369]
[1769715134531,14.12660155,2801.4,2799.5,0.002]
[1769715135873,4.31864374,2801.5,2799.5,13.36689154]
[1769715135874,0.001,2801.5,2799.5,13.36689154]
[1769715136077,13.3055295,2803.2,2800.4,13.36489154]
[1769715136287,0.89161525,2804.0,2801.0,13.36489154]
[1769715136481,0.89161525,2804.0,2800.5,1.29622546]
[1769715136482,3.56648798,2803.9,2801.7,3.797]
[1769715136693,3.56648798,2803.9,2801.8,13.36489154]
[1769715137143,16.87201748,2803.9,2801.8,13.36489154]
[1769715137344,13.3055295,2803.8,2801.2,13.36489154]
[1769715137586,13.3055295,2803.8,2799.9,1.77226757]
[1769715137587,13.38772373,2803.8,2800.6,13.36489154]
[1769715137748,13.3055295,2803.2,2800.8,0.89260211]
[1769715139506,13.3055295,2803.2,2800.8,14.25749365]
[1769715139842,0.89186971,2803.1,2800.8,14.25749365]
[1769715141873,0.747,2803.3,2801.0,14.25742991]
[1769715142247,14.19724015,2803.6,2801.0,14.25742991]
[1769715142585,2.6929504,2803.5,2801.1,15.14764988]
[1769715143415,0.001,2803.0,2801.3,13.36489154]
[1769715143695,3.56614092,2804.2,2801.7,13.36489154]
[1769715143903,3.56614092,2804.2,2801.9,13.36489154]
[1769715144082,13.3055295,2804.1,2801.9,13.36489154]
[1769715144283,13.3055295,2803.9,2801.8,0.89228353]
[1769715145075,13.3055295,2803.7,2801.7,0.89229141]
[1769715145992,14.2251244,2803.6,2801.5,3.56926151]
[1769715146162,0.89171065,2803.6,2801.6,13.97218392]
[1769715146973,14.2251244,2803.6,2801.6,0.44616724]
[1769715147992,14.2251244,2803.6,2801.7,0.89231537]
[1769715148178,14.2251244,2803.6,2801.6,0.89232613]
[1769715148379,13.33341375,2803.4,2801.6,0.89232613]
[1769715148864,13.33341375,2803.4,2801.0,3.57008582]
[1769715149062,13.33341375,2803.4,2801.6,0.89232874]
[1769715149294,13.33341375,2803.4,2800.6,13.52601668]
[1769715149295,13.33341375,2803.4,2801.2,0.89244346]
[1769715149498,13.33341375,2803.4,2801.3,0.89241581]
[1769715149674,13.33341375,2803.2,2801.3,0.89241581]
[1769715149878,13.33341375,2803.2,2801.0,0.892531]
[1769715150087,13.33341375,2803.0,2800.8,3.57038575]
[1769715150392,13.33341375,2802.8,2800.9,0.5799477]
[1769715151262,13.33341375,2802.4,2799.7,3.57178253]
[1769715151491,13.33341375,2802.2,2800.1,0.89280255]
[1769715151693,0.1024,2802.3,2800.1,0.44643167]
[1769715151694,13.33341375,2802.0,2800.1,0.44643167]
[1769715151896,13.33341375,2801.6,2799.5,0.002]
[1769715152196,7.90395019,2802.0,2799.5,13.52801668]
[1769715152197,0.89221984,2802.0,2799.5,13.52801668]
[1769715152495,0.89221984,2802.0,2799.7,13.52601668]
[1769715152693,1.69521457,2802.0,2799.9,13.52601668]
[1769715153665,0.89209249,2802.4,2800.1,13.950098]
[1769715153983,0.89196517,2802.8,2800.7,13.950098]
[1769715154182,0.89196517,2802.8,2800.8,0.89260211]
[1769715156178,13.67096889,2802.8,2800.8,0.89260211]
[1769715156378,1.80067018,2802.7,2800.9,1.84131086]
[1769715158171,13.67103255,2802.6,2800.9,0.89255043]
[1769715158483,13.67103255,2802.6,2800.6,0.89263721]
[1769715158688,13.67103255,2802.6,2800.7,0.89262561]
[1769715158996,13.67103255,2802.6,2800.3,0.002]
[1769715158997,13.67103255,2802.6,2800.6,3.57062141]
[1769715159203,13.67103255,2802.6,2800.8,0.89260029]
[1769715159370,14.44469728,2802.5,2800.9,0.89254864]
[1769715159574,1.66569356,2802.5,2800.9,0.89254864]
[1769715159769,0.89202883,2802.6,2800.9,0.89254864]
[1769715160600,0.89202883,2802.6,2800.4,17.52097142]
[1769715161323,0.89202883,2802.6,2800.5,13.950098]
[1769715162172,0.89202883,2802.6,2800.4,0.89272961]
[1769715162173,13.67103255,2802.6,2800.4,0.89272961]
[1769715162381,12.77900372,2802.4,2800.4,0.89272961]
[1769715162700,0.89212432,2802.3,2800.3,0.002]
[1769715162903,13.67112804,2802.3,2800.3,0.002]
[1769715163407,0.1024,2802.2,2800.3,0.002]
[1769715163611,12.77900372,2801.7,2800.0,0.002]
[1769715164479,12.77900372,2801.5,2800.0,0.002]
[1769715164677,12.77900372,2801.3,2800.0,0.002]
[1769715164988,12.77900372,2801.3,2799.3,0.002]
[1769715165184,12.77900372,2801.1,2799.3,0.002]
[1769715165391,12.77900372,2800.9,2799.3,0.002]
[1769715166707,0.89260211,2800.8,2799.3,0.002]
[1769715166913,13.67160583,2800.8,2799.3,0.002]
[1769715168112,13.67160583,2800.8,2799.5,0.002]
[1769715169507,12.77900372,2800.6,2799.5,0.002]
[1769715169808,14.13160409,2800.5,2799.5,0.002]
[1769715169987,12.77900372,2800.5,2799.5,0.002]
[1769715170775,0.89272961,2800.4,2799.5,0.002]
[1769715170979,13.67173333,2800.4,2798.6,0.002]
[1769715171178,1.72426518,2800.3,2798.6,0.002]
[1769715172906,0.89279337,2800.2,2798.6,0.002]
[1769715173110,13.67179709,2800.2,2798.6,0.002]
[1769715174197,8.13666164,2799.4,2798.1,0.002]
[1769715174418,0.81366616,2799.3,2798.3,0.89339452]
[1769715174725,0.89279337,2800.2,2798.3,14.84349252]
[1769715174884,3.57117348,2800.3,2798.1,3.57559825]
[1769715174885,12.77900372,2799.8,2798.1,0.89544237]
[1769715175079,12.77900372,2799.8,2798.1,0.002]
[1769715175284,12.77900372,2799.6,2798.1,0.002]
[1769715177001,12.73712187,2798.1,2795.4,13.98599912]
[1769715177313,2.84854138,2798.0,2795.6,13.09169144]
[1769715177626,0.76116303,2797.9,2795.9,13.09169144]
[1769715177991,0.748,2798.4,2795.9,13.09169144]
[1769715178288,0.76101966,2798.3,2795.9,13.09169144]
[1769715178513,0.89304851,2799.4,2797.1,13.09169144]
[1769715178689,0.748,2799.0,2797.1,13.09169144]
[1769715178885,0.76061482,2798.9,2797.1,13.09169144]
[1769715179221,0.89323995,2798.8,2797.1,13.09169144]
[1769715179404,1.28329628,2798.7,2797.2,1.39854932]
[1769715179607,0.76061482,2798.6,2797.2,14.49024076]
[1769715179794,0.89323995,2798.8,2797.2,14.49024076]
[1769715180725,0.76049177,2798.7,2797.2,14.49024076]
[1769715180932,0.89330379,2798.6,2797.2,1.39854932]
[1769715181245,0.76049177,2798.5,2797.0,0.89381178]
[1769715181457,0.76049177,2798.5,2796.5,13.09169144]
[1769715181637,13.49761364,2798.5,2796.0,15.21452675]
[1769715181942,13.49761364,2798.4,2796.0,15.21452675]
[1769715182145,13.49761364,2798.3,2796.0,15.21452675]
[1769715182346,13.49761364,2798.3,2795.5,5.72365338]
[1769715182347,12.73712187,2798.0,2795.5,14.49029135]
[1769715182514,12.73712187,2797.8,2795.9,0.89414435]
[1769715182711,0.76049177,2797.7,2795.5,14.49029135]
[1769715182944,0.76049177,2797.7,2795.9,0.8941436]
[1769715183146,13.63074497,2797.6,2795.5,15.38456601]
[1769715183315,2.55706469,2797.5,2795.5,15.38457598]
[1769715183663,13.49761364,2797.4,2795.5,1.39859991]
[1769715183819,0.76049177,2797.3,2795.5,0.89428483]
[1769715184013,0.76049177,2797.2,2795.5,0.89428483]
[1769715184213,1.50849177,2797.1,2795.5,0.89428483]
[1769715184425,0.76049177,2797.0,2795.5,0.89428483]
[1769715184633,0.748,2797.2,2795.5,13.98597627]
[1769715184851,0.7588048,2797.1,2795.6,1.75632764]
[1769715185056,0.8938148,2797.0,2795.7,0.89423042]
[1769715185351,0.8938148,2797.0,2795.6,1.75632764]
[1769715185650,0.8938148,2797.0,2795.3,3.57740046]
[1769715185813,0.8938148,2797.0,2795.5,0.89427468]
[1769715186144,0.8938148,2797.0,2795.5,0.89427371]
[1769715186345,0.8938148,2797.0,2795.6,0.89426225]
[1769715186735,0.75849097,2796.9,2795.0,13.09169144]
[1769715186942,0.75849097,2796.9,2795.6,0.89425456]
[1769715187260,0.89389576,2796.8,2795.3,13.09169144]
[1769715187414,0.89346342,2798.1,2795.5,13.09169144]
[1769715187617,0.75820569,2798.0,2795.5,13.09169144]
[1769715187822,0.75820569,2798.0,2795.4,7.92575617]
[1769715187823,0.23996691,2797.9,2795.7,13.09169144]
[1769715188256,9.69520329,2799.6,2795.7,13.09169144]
[1769715188257,0.001,2800.1,2798.2,13.09169144]
[1769715188457,12.73712187,2801.3,2798.0,0.9981726]
[1769715188458,13.62957563,2801.3,2798.6,13.09169144]
[1769715188660,13.62957563,2801.3,2798.5,7.92575617]
[1769715188661,13.62957563,2801.3,2798.7,13.09169144]
[1769715188846,1.71993468,2801.2,2798.9,13.09169144]
[1769715189044,0.89228353,2801.8,2799.0,0.89317613]
[1769715189247,13.6294054,2801.8,2799.0,13.98486757]
[1769715189760,12.73712187,2801.0,2798.6,0.89330097]
[1769715189925,12.73712187,2800.8,2797.4,13.09169144]
[1769715190123,12.73712187,2800.8,2798.6,0.89329741]
[1769715190356,12.73712187,2800.6,2798.6,0.89329741]
[1769715190556,12.73712187,2800.4,2798.4,0.89334593]
[1769715190852,12.73712187,2800.4,2798.5,0.89332776]
[1769715191055,12.73712187,2800.4,2798.0,0.89347167]
[1769715191258,12.73712187,2800.0,2797.5,0.89365504]